Cogmind - Beta 11.1 @@@ ROGUE MODE // 2022.09.13 @ 00:21:40 Player: Pogmind Result: Destroyed by D-53 Grenadier with Mini Grenade Launcher Performance ------------- Evolutions (0) 0 Regions Visited (2) 400 Robots Destroyed (42) 210 Value Destroyed (951) 951 Prototype IDs (0) 0 Alien Tech Used (0) 0 Bonus (0) 0 TOTAL SCORE: 1561 Bonus ------- None Cogmind --------- Core Integrity 0/250 Matter 219/300 Energy 100/100 System Corruption 0% Temperature Cool (0) Movement Treading (320) Ox2 Location -10/Mines Parts ------- > --- POWER (1) -------- (None) > --- PROPULSION (2) --- Light Treads Light Treads > --- UTILITY (2) ------ Improved Heat Sink Huge Storage Unit > --- WEAPON (2) ------- Light Cannon > --- INVENTORY (25) --- Ion Engine Light Treads Light Treads Compact Wheel Compact Wheel Heat Sink Heat Sink Improved Heat Sink Large Storage Unit EM Pulse Gun Beam Rifle Light Cannon Light Cannon Light Cannon Light Cannon Rocket Launcher Rocket Launcher Rocket Launcher Rocket Launcher Peak State ------------ > --- POWER ------------ Ion Engine > --- PROPULSION ------- Light Treads Light Treads > --- UTILITY ---------- Improved Heat Sink Huge Storage Unit > --- WEAPON ----------- Beam Rifle Beam Rifle > --- INVENTORY -------- Ion Engine Light Treads Light Treads Wheel Compact Wheel Compact Wheel Heat Sink Heat Sink Large Storage Unit EM Pulse Gun Light Cannon Light Cannon Light Cannon Light Cannon Light Cannon Light Cannon Rocket Launcher Rocket Launcher [Rating: 13] Favorites ----------- Power Ion Engine Engine Ion Engine Propulsion Light Treads Treads Light Treads Wheel Wheel Utility Improved Heat Sink Device Improved Heat Sink Storage Huge Storage Unit Weapon Beam Rifle Energy Gun Beam Rifle Ballistic Cannon Light Cannon Launcher Rocket Launcher Build | -11 -10 -10 ------- Run | Scr Mat Min Slots Evolved . | . . . Power . | . . . Propulsion . | . . . Utility . | . . . Weapon . | . . . Parts Attached 32 | 7 21 4 Power 2 | 1 1 . Engine 2 | 1 1 . Core . | . . . Reactor . | . . . Propulsion 8 | 2 4 2 Treads 5 | 2 2 1 Leg . | . . . Wheel 3 | . 2 1 Hover . | . . . Flight . | . . . Utility 6 | 2 4 . Device 3 | 1 2 . Storage 3 | 1 2 . Processor . | . . . Hackware . | . . . Protection . | . . . Artifact . | . . . Weapon 16 | 2 12 2 Energy Gun 9 | 2 7 . Energy Cannon . | . . . Ballistic Gun . | . . . Ballistic Cannon 4 | . 2 2 Launcher 3 | . 3 . Special Weapon . | . . . Impact Weapon . | . . . Slashing Weapon . | . . . Piercing Weapon . | . . . Special Melee Weapon . | . . . Unidentified Prototypes . | . . . Parts Lost 9 | . 6 3 Power 2 | . 1 1 Propulsion 2 | . 2 . Utility . | . . . Weapon 5 | . 3 2 Highest Loss Streak 3 | . 2 3 To Critical Strikes . | . . . Average Slot Usage (%) 99 | . 99 99 Engine 13 | . 13 13 Treads 25 | . 25 28 Wheel 1 | . 2 . Device 14 | . 14 14 Storage 14 | . 14 14 Energy Gun 18 | . 18 13 Ballistic Cannon 9 | . 9 14 Naked Turns . | . . . Heaviest Build 92 | 13 92 92 Greatest Support 40 | 40 40 40 Greatest Overweight (x) 3 | . 3 2 Average Overweight (x) 1 | . 1 2 Largest Inventory Capacity 25 | 8 25 25 Average Capacity 21 | 7 21 25 Most Carried 21 | 4 21 20 Average Carried 16 | 2 16 19 Final Capacity 25 | 8 25 25 Final Carried 19 | 4 19 19 Class Distribution -------------------- 100% | Mutant Dominant Class ---------------- Mutant | -10/Materials Mutant | -10/Mines Resources | -11 -10 -10 ----------- Run | Scr Mat Min Matter Collected 577 | 270 291 16 Remotely . | . . . Salvage Created 1468 | 137 1226 105 Parts 77 | 9 64 4 Haulers Intercepted 2 | . 2 . Recyclers Shooed 2 | . 1 1 Parts Field Recycled . | . . . Retrieved Matter . | . . . Parts Self-Destructed . | . . . Prevented . | . . . Kills | -11 -10 -10 ------- Run | Scr Mat Min Combat Hostiles Destroyed 23 | . 20 3 Guns 13 | . 11 2 Cannons 2 | . 1 1 AOE 8 | . 8 . Classes Destroyed 10 | 2 7 1 Worker 3 | . 3 . Builder 1 | . 1 . Tunneler 3 | 3 . . Hauler 2 | . 2 . Recycler 5 | 1 4 . Operator 2 | . 2 . Watcher 3 | . 3 . Swarmer 3 | . 3 . Grunt 19 | . 17 2 Demolisher 1 | . . 1 Best Kill Streak 5 | 2 5 2 Combat Bots Only 4 | . 4 2 Max Kills in Single Turn 3 | 1 3 1 Gunslinging . | . . . Exploded 2 | . 2 . Melee . | . . . Uniques/NPCs Destroyed . | . . . Combat | -11 -10 -10 -------- Run | Scr Mat Min Damage Taken 1410 | . 896 514 Core 271 | . 89 182 Absorbed by Shields . | . . . Core Remaining (%) 100 | 100 . . Volleys Fired 114 | 6 97 11 Largest 2 | 2 2 2 Hottest 112 | 100 112 91 Shots Fired 220 | 12 186 22 Gun 188 | 12 172 4 Cannon 27 | . 9 18 Launcher 5 | . 5 . Special . | . . . Kinetic 27 | . 9 18 Thermal 185 | 12 169 4 Explosive 5 | . 5 . Electromagnetic 3 | . 3 . Robot Hit Streak 9 | 5 9 7 Robot Miss Streak 4 | 2 4 3 Penetration Max . | . . . Secondary Targets . | . . . Shots Hit Robots 131 | 6 112 13 Core Hits 62 | 5 49 8 Critical Kills . | . . . Critical Parts Destroyed . | . . . Critical Strikes 16 | 3 13 . Burn 16 | 3 13 . Melee Attacks . | . . . Impact . | . . . Slashing . | . . . Piercing . | . . . Sneak Attacks . | . . . Combat Hostiles . | . . . Follow-up Attacks . | . . . Damage Inflicted 2540 | 82 2207 251 Guns 1685 | 76 1549 60 Cannons 257 | . 79 178 Explosions 542 | . 542 . Melee . | . . . Ramming 56 | 6 37 13 Kinetic 257 | . 79 178 Thermal 1685 | 76 1549 60 Explosive 542 | . 542 . Electromagnetic . | . . . Impact . | . . . Slashing . | . . . Piercing . | . . . Highest Corruption . | . . . Average Corruption . | . . . Corruption Purged . | . . . Corruption Blocked . | . . . Overload Shots . | . . . Overflow Damage . | . . . Projectiles . | . . . Explosions . | . . . Melee . | . . . Knockbacks 4 | . 3 1 Impact . | . . . Kinetic 4 | . 3 1 Secondary . | . . . Self-Inflicted Damage 47 | . 47 . Shots 1 | . 1 . Rammed 14 | 1 12 1 Targets Rammed 14 | 1 12 1 Kicked . | . . . Crushed . | . . . Highest Temperature 303 | 156 303 7 Average Temperature 86 | 63 90 5 Received Heat Transfer 474 | . 459 15 Effects 1 | . 1 . Energy Bleed 1 | . 1 . Siege Activations . | . . . Robots Corrupted . | . . . Combat Hostiles . | . . . Parts Fried . | . . . Impact Corruptions . | . . . Robots Melted . | . . . Combat Hostiles . | . . . Parts Melted 12 | 5 7 . Heat Transferred 5513 | 444 4921 148 Parts Sabotaged . | . . . Parts Stolen . | . . . Parts Stripped . | . . . Power Chain Reactions . | . . . Missiles Intercepted . | . . . Alert | -11 -10 -10 ------- Run | Scr Mat Min Peak Influence 322 | 20 322 104 Initial 39 | . 13 39 Average 122 | 7 127 86 Maximum Alert Level 1 | . 1 . Low Security (%) 76 | 100 74 100 Level 1 23 | . 25 . Level 2 . | . . . Level 3 . | . . . Level 4 . | . . . Level 5 . | . . . High Security . | . . . Max Security . | . . . Squads Dispatched 5 | . 5 . Investigation 3 | . 3 . Extermination . | . . . Reinforcement 2 | . 2 . Assault . | . . . Garrison . | . . . Intercept . | . . . Searches Triggered . | . . . Construction Impeded . | . . . Haulers Reinforced . | . . . Active Scanning Responses . | . . . Cargo Convoy Interrupts . | . . . Stealth | -11 -10 -10 --------- Run | Scr Mat Min Distress Signals 4 | . 4 . Communications Jammed . | . . . Distress Signals . | . . . Times Spotted 38 | . 31 7 Peak Tracking Total 6 | . 6 6 Tactical Retreats 3 | . 3 . Traps | -11 -10 -10 ------- Run | Scr Mat Min Traps Triggered . | . . . Indirectly . | . . . Trap Hack Attempts . | . . . Triggered . | . . . Disarmed . | . . . Reprogrammed . | . . . Reused . | . . . Traps Extracted . | . . . Installed . | . . . Triggered . | . . . Machines | -11 -10 -10 ---------- Run | Scr Mat Min Machines Disabled 5 | . 4 1 Max in Single Turn 1 | . 1 1 Machines Sabotaged . | . . . Garrisons Compromised . | . . . Overloaded Fab Kills . | . . . Hacking | -11 -10 -10 --------- Run | Scr Mat Min Machines Accessed 8 | . 8 . Terminals 6 | . 6 . Fabricators . | . . . Repair Stations . | . . . Recycling Units 2 | . 2 . Scanalyzers . | . . . Garrison Access . | . . . Total Hacks 19 | . 19 . Successful 10 | . 10 . Failed 9 | . 9 . Catastrophic 1 | . 1 . Database Lockouts . | . . . Manual 13 | . 13 . Terminals 13 | . 13 . Fabricators . | . . . Repair Stations . | . . . Recycling Units 6 | . 6 . Scanalyzers . | . . . Garrison Access . | . . . Terminal Hacks 2 | . 2 . Robot Analysis 1 | . 1 . Locate Traps 1 | . 1 . Fabricator Hacks . | . . . Repair Station Hacks . | . . . Recycling Unit Hacks 2 | . 2 . Retrieve Components 2 | . 2 . Scanalyzer . | . . . Garrison Access Hacks . | . . . Unauthorized Hacks 6 | . 6 . Terminals 3 | . 3 . Botnet 2 | . 2 . Operators 1 | . 1 . Fabricators . | . . . Repair Stations . | . . . Recycling Units 3 | . 3 . Reject 1 | . 1 . Tunnel 2 | . 2 . Scanalyzers . | . . . Garrison Access . | . . . Data Cores Recovered . | . . . Used . | . . . Hacking Detections 7 | . 7 . Full Trace Events 1 | . 1 . Feedback Events . | . . . Feedback Blocked . | . . . Robot Schematics Acquired . | . . . Robots Built . | . . . Authchips . | . . . Time . | . . . Total Robot Build Rating . | . . . Part Schematics Acquired . | . . . Parts Built . | . . . Authchips . | . . . Time . | . . . Total Part Build Rating . | . . . Parts Repaired . | . . . Time . | . . . Parts Recycled . | . . . Recycled Matter . | . . . Retrieved Matter . | . . . Retrieved Components 11 | . 11 . Parts Scanalyzed . | . . . Part Schematics Acquired . | . . . Parts Damaged . | . . . Bothacking | -11 -10 -10 ------------ Run | Scr Mat Min Used RIF Installer . | . . . Robots Hacked . | . . . Non-combat . | . . . Combat . | . . . Robot Hacks Applied . | . . . Relay Couplers Released . | . . . Fabnet Peak Effective % . | . . . Robots Rewired . | . . . Allies Hacked . | . . . Hacks Repelled . | . . . Allies | -11 -10 -10 -------- Run | Scr Mat Min Total Allies . | . . . Largest Group . | . . . Highest-Rated Group . | . . . Highest-Rated Ally . | . . . Total Orders . | . . . Ally Attacks . | . . . Total Damage . | . . . Kills . | . . . Allies Corrupted . | . . . Allies Melted . | . . . Intel | -11 -10 -10 ------- Run | Scr Mat Min Robot Analysis Total 1 | . 1 . Derelict Logs Recovered . | . . . Drone Launches . | . . . Drone Recoveries . | . . . Exploration | -11 -10 -10 ------------- Run | Scr Mat Min Turns Passed 5798 | 104 5367 327 Spaces Moved 1414 | 49 1276 89 Core 8 | 8 . . Treads 890 | 41 760 89 Legs . | . . . Wheels 516 | . 516 . Hover . | . . . Flight . | . . . Fastest Speed 50 | 50 95 320 Average Speed 208 | 142 202 320 Slowest Speed 320 | 160 320 320 Overloaded Moves . | . . . Propulsion Burnouts . | . . . Robots Hopped . | . . . Cave-ins Triggered . | . . . Exploration Rate (%) 42 | 4 99 25 Regions Visited 2 Branch Regions 1 Pre-discovered Areas 2 | . 2 . Known Exits Taken . | . . . Unknown Exits Taken 2 | 1 1 . Scrap Searched 2 | . . 2 Spaces Dug . | . . . Terrain Destroyed 31 | . 31 . Melee . | . . . Projectile . | . . . AOE 31 | . 31 . Terrain Rammed . | . . . Walls Destroyed . | . . . Machines Disabled . | . . . Actions | -11 -10 -10 --------- Run | Scr Mat Min Total 4039 | 67 3866 106 Wait 2418 | 1 2417 . Move 1413 | 49 1275 89 Hop . | . . . Pick Up 33 | 4 28 1 Fast Attach 10 | 7 3 . Attach 7 | . 6 1 Detach 2 | . 2 . Swap 15 | . 12 3 Drop 14 | . 14 . Fire 114 | 6 97 11 Melee . | . . . Ram . | . . . Kick . | . . . Crush 13 | . 12 1 Escape Stasis . | . . . Rewire . | . . . Trap . | . . . Miscellaneous . | . . . Route ------- -11/Scrapyard -10/Materials (discovered 5 exits: [*Mat x3] / [*Min x2]) -10/Mines (discovered 1 exit: [*Mat]) History --------- Turn | Location | Event 8 | -11/Scrapyard | Discovered new exit (range 13) 105 | -11/Scrapyard | Entered Materials 308 | -10/Materials | Build established: Mutant 639 | -10/Materials | Discovered new exit (range 8) 922 | -10/Materials | Discovered new exit (range 15) 966 | -10/Materials | Discovered new exit (range 15) 985 | -10/Materials | Discovered new exit (range 14) 1260 | -10/Materials | Discovered new exit (range 13) 5472 | -10/Materials | Entered Mines 5516 | -10/Mines | Met a Derelict bent on vengeance 5561 | -10/Mines | Discovered new exit (range 12) 5755 | -10/Mines | Assembled infested the area 5760 | -10/Mines | Assisted by a Guerilla fighting off Assembled 5770 | -10/Mines | Core integrity fell below 50% 5776 | -10/Mines | Core integrity fell below 20% 5799 | -10/Mines | Destroyed by D-53 Grenadier with Mini Grenade Launcher Last Messages --------------- coming from, and they're closing on this area, come on!" 05763_ HU-FFL(h): "I'll hold them off! Go on ahead or try to find another way!" 05763_ HV Slug penetrates Wall. 05764_ as-40631 sneak attacks. 05765_ T-07 Excavator destroyed. 05768_ C-30 ARC bursts open, deploying its payload. 05768_ D-53 Grenadier unfolds itself. 05769_ HV Slug penetrates as-40631. 05769_ as-40631 destroyed. 05773_ Ion Engine destroyed. 05776_ The unstable cave ceiling collapses. 05777_ as-98346 suffers critical hit (Destroy). 05777_ as-98346 destroyed. 05778_ The unstable cave ceiling collapses. 05781_ Lgt. Cannon destroyed. 05783_ The unstable cave ceiling collapses. 05785_ D-53 Grenadier destroyed. 05791_ The unstable cave ceiling collapses. 05799_ Lgt. Cannon destroyed. Map ----- +----------------------------------------------------+ | ???????????????????????????????? | | ???????????????????????????????? | | ???????????????????????????????? | | ???????????????????????????????? | | ???????????????????????????????? | | ???????????????????????????????? | | ???????????????????????????????? | | ???????????????????????????????? | | ???????????????????????????????? | | ???????????????????????????????? | | ???????????????????????????????? | | ?????????????????????#?????????? | | ?????????????????????#%????????? | | ?????????????????????#|????????? | | ?????????????????????#%????????? | | ???????????????????###%????????? | | ???????????????????#% #####???? | | ???????????????????# %% ##??? | | ????????????????????# #??? | | ????????????????????## #??? | | ???????????????????## ##?? | | ???????????????????# ##? | | ???????????????????# #? | | ???????????????????# # | | ???????????????????# | | ???????????????????# @ # | | ???????????????????## # | | ######??????######### # | | # ##?????# !%[ %d ##? | | #?????# ######### ## ##?? | | ##????# #???????#%#??##??? | | #????# #???????#k#??????? | | #????# #???????#%#??????? | | #???## ##??????#=#??????? | | ##?## ##?????#%#####??? | | # ### ##????# ## ##?? | | ## ###### #?? | | ?#### ## #?? | | ????## ##?? | | ?????# ## ##??? | | ?????# ## #### #???? | | ????# ######??## ## #???? | | ???# #???????#######% ##??? | | ???# #???????# % = #??? | | ???## #???????# """ "%" #??? | | ????## #???????# """ """ #??? | | ?????## ##???????# """ """ #??? | | ??????####????????# #??? | | ??????????????????# """ #??? | | ??????????????????# """ < #??? | +----------------------------------------------------+ Best States ------------- Heat Dissipation 39 Energy Generation 10 Energy Capacity 250 Matter Stores 300 Matter Capacity 300 Sight Range 16 Terrain Scan Density 10 Evasion (%) 41 Recoil Reduction 2 Item Schematics ----------------- None Robot Schematics ------------------ None Fabricated ------------ Nothing Alien Tech Used ----------------- None Achievements -------------- None Challenges ------------ None Game ------ Seed UtilityAnalysisDatajack Manual? 0 Play Time 00:23:42 Cumulative 544.1 hours Start 2022.09.12 @ 23:55:47 End 2022.09.13 @ 00:21:40 Sessions 1 Manual Loads 0 Difficulty Rogue Special Mode None Game No. 52 Rogue 42 Adventurer 5 Explorer 5 Win Type - Total 22 Types 6/5/4/0/3/1/2/0/1 Lore% 85 Gallery% 93 Achievement% 83 Wizard Run 0 Options --------- ASCII 0 Keyboard 1 Movement Numpad Keybinds 0 Fullscreen 1 Font 18/SmallcapsGlow Map View 76x50 Tactical HUD 1 Map Filters NONE Filters NONE Steam 1 RUN: 264b465e-f194-41c9-a5ba-77b4272c966e